Cogmind - Beta 14 @@@ ROGUE MODE // 2025.03.21 @ 11:57:18 Player: Nika Jay Result: Destroyed by G-50 Soldier with Heavy Laser Performance ------------- Evolutions (1) 500 Regions Visited (6) 1200 Robots Destroyed (49) 245 Value Destroyed (703) 703 Prototype IDs (0) 0 Alien Tech Used (0) 0 Bonus (0) 0 TOTAL SCORE: 2648 Bonus ------- None Cogmind --------- Core Integrity 0/400 Matter 290/300 Energy 100/100 System Corruption 0% Temperature Cool (9) Movement Rolling (105) Ox1 Location -8/Mines Parts ------- > --- POWER (1) -------- (None) > --- PROPULSION (3) --- Aluminum Leg Armored Wheel > --- UTILITY (3) ------ Large Storage Unit Melee Analysis Suite > --- WEAPON (2) ------- Katana > --- INVENTORY (15) --- Reinforced Ion Engine Seismic Detector Seismic Detector Assault Rifle Assault Rifle Assault Rifle Assault Rifle Rocket Launcher Mini Grenade Launcher Mini Grenade Launcher Katana Peak State ------------ > --- POWER ------------ Reinforced Ion Engine > --- PROPULSION ------- Aluminum Leg Aluminum Leg Aluminum Leg > --- UTILITY ---------- Heat Sink Large Storage Unit Melee Analysis Suite > --- WEAPON ----------- Katana Katana > --- INVENTORY -------- Reinforced Ion Engine Aluminum Leg Wheel Seismic Detector Seismic Detector Assault Rifle Assault Rifle Assault Rifle Assault Rifle Assault Rifle Assault Rifle Mini Grenade Launcher Mini Grenade Launcher [Rating: 17] Favorites ----------- Power Reinforced Ion Engine Engine Reinforced Ion Engine Propulsion Aluminum Leg Treads Light Treads Leg Aluminum Leg Wheel Armored Wheel Utility Large Storage Unit Device Seismic Detector Storage Large Storage Unit Processor Melee Analysis Suite Weapon Light Assault Rifle Ballistic Gun Light Assault Rifle Launcher Grenade Launcher Slashing Weapon Katana Build | -11 -10 -10 -9 -9 -9 -8 ------- Run | Yrd Mat Min Mat Min Exi Min Slots Evolved 2 | . . . 2 . . . Power . | . . . . . . . Propulsion 1 | . . . 1 . . . Utility 1 | . . . 1 . . . Weapon . | . . . . . . . Parts Attached 46 | 7 . 3 17 16 . 3 Power 5 | 1 . 1 3 . . . Engine 5 | 1 . 1 3 . . . Core . | . . . . . . . Reactor . | . . . . . . . Propulsion 14 | 2 . . 2 7 . 3 Treads 1 | . . . 1 . . . Leg 12 | 2 . . 1 7 . 2 Wheel 1 | . . . . . . 1 Hover . | . . . . . . . Flight . | . . . . . . . Utility 9 | 2 . . 4 3 . . Device 5 | 1 . . 2 2 . . Storage 2 | 1 . . 1 . . . Processor 2 | . . . 1 1 . . Hackware . | . . . . . . . Protection . | . . . . . . . Artifact . | . . . . . . . Weapon 18 | 2 . 2 8 6 . . Energy Gun . | . . . . . . . Energy Cannon . | . . . . . . . Ballistic Gun 13 | 2 . 1 6 4 . . Ballistic Cannon . | . . . . . . . Launcher 3 | . . 1 2 . . . Special Weapon . | . . . . . . . Impact Weapon . | . . . . . . . Slashing Weapon 2 | . . . . 2 . . Piercing Weapon . | . . . . . . . Special Melee Weapon . | . . . . . . . Unidentified Prototypes . | . . . . . . . Parts Lost 14 | . . . . 7 . 7 Power 1 | . . . . . . 1 Propulsion 7 | . . . . 3 . 4 Utility 3 | . . . . 2 . 1 Weapon 3 | . . . . 2 . 1 Highest Loss Streak 7 | . . . . 7 . 7 To Critical Strikes . | . . . . . . . Average Slot Usage (%) 97 | . 100 100 93 98 100 77 Engine 11 | . 14 14 11 11 11 7 Treads 1 | . . . 5 . . . Leg 28 | . 28 28 23 32 33 20 Device 14 | . 14 14 20 12 11 7 Storage 11 | . 14 14 11 11 11 11 Processor 4 | . . . 1 8 11 11 Ballistic Gun 19 | . 28 26 21 13 11 1 Slashing Weapon 4 | . . . . 8 11 11 Peak Build Rating 17 | 7 7 7 14 17 16 16 Average Rating 11 | 5 7 7 11 14 16 13 On Entrance 9 | . 7 7 7 13 16 16 Naked Turns . | . . . . . . . Heaviest Build 37 | 13 13 15 37 37 35 35 Greatest Support 30 | 20 20 20 30 30 30 30 Greatest Overweight (x) 3 | . . . 1 3 1 2 Average Overweight (x) . | . . . . 1 1 1 Largest Inventory Capacity 15 | 8 8 8 15 15 15 15 Average Capacity 12 | 7 8 8 14 15 15 15 Most Carried 15 | 3 8 8 15 15 13 13 Average Carried 10 | 1 5 8 13 13 13 11 Final Capacity 15 | 8 8 8 15 15 15 15 Final Carried 14 | 3 8 8 14 14 13 11 Class Distribution -------------------- 57% | Scavenger-Mutant 42% | Mutant Dominant Class ---------------- Mutant | -10/Materials Mutant | -10/Mines Scavenger-Mutant | -9/Materials Scavenger-Mutant | -9/Mines Scavenger-Mutant | -9/Exiles Mutant | -8/Mines Resources | -11 -10 -10 -9 -9 -9 -8 ----------- Run | Yrd Mat Min Mat Min Exi Min Matter Collected 1113 | 300 68 94 312 339 . . Remotely . | . . . . . . . Salvage Created 1517 | 193 99 94 439 576 . 116 Parts 126 | 21 17 6 36 42 . 4 Haulers Intercepted . | . . . . . . . Recyclers Shooed 5 | . 2 . 1 2 . . Parts Field Recycled . | . . . . . . . Retrieved Matter . | . . . . . . . Parts Self-Destructed . | . . . . . . . Prevented . | . . . . . . . Kills | -11 -10 -10 -9 -9 -9 -8 ------- Run | Yrd Mat Min Mat Min Exi Min Combat Hostiles Destroyed 20 | . 3 1 9 5 . 2 Melee 2 | . . . . . . 2 Guns 11 | . 3 . 3 5 . . AOE 7 | . . 1 6 . . . Classes Destroyed 10 | 2 3 1 2 2 . . Worker 6 | . 1 . 1 4 . . Builder 1 | . . . . 1 . . Tunneler 13 | 5 1 2 1 4 . . Recycler 7 | 1 . 1 2 3 . . Watcher 3 | . 1 . 2 . . . Swarmer 9 | . 3 . 6 . . . Grunt 7 | . . . 1 4 . 2 Duelist 1 | . . . . 1 . . Sentry 2 | . . . 2 . . . Assembled 1 | . . 1 . . . . Best Kill Streak 6 | 6 2 1 3 4 . 2 Combat Bots Only 3 | . 2 1 3 2 . 2 Max Kills in Single Turn 2 | 1 1 1 2 2 . 1 Gunslinging 1 | . . . . 1 . . Exploded 2 | . . 1 2 . . . Melee 1 | . . . . . . 1 Uniques/NPCs Destroyed . | . . . . . . . Combat | -11 -10 -10 -9 -9 -9 -8 -------- Run | Yrd Mat Min Mat Min Exi Min Hostile Shots Fired 164 | . 14 5 25 53 . 67 Missed 39 | . 5 2 8 12 . 12 Damage Taken 2155 | . 76 121 267 739 . 952 Core 481 | . 33 34 47 121 . 246 Absorbed by Shields . | . . . . . . . Core Remaining (%) 86 | 100 . 73 . . . . Volleys Fired 122 | 15 38 19 21 29 . . Largest 2 | 2 2 2 2 2 . . Hottest 43 | 40 40 40 43 43 . . Shots Fired 229 | 30 76 27 38 58 . . Gun 214 | 30 76 16 34 58 . . Cannon . | . . . . . . . Launcher 15 | . . 11 4 . . . Special . | . . . . . . . Kinetic 214 | 30 76 16 34 58 . . Thermal . | . . . . . . . Explosive 15 | . . 11 4 . . . Electromagnetic . | . . . . . . . Robot Hit Streak 17 | 9 4 3 17 10 . . Robot Miss Streak 5 | 2 5 5 1 2 . . Penetration Max . | . . . . . . . Secondary Targets 2 | . . . . 2 . . Max Gunslinging Chain 1 | . . . . 1 . . Shots Hit Robots 172 | 24 38 9 31 61 . 9 Core Hits 79 | 11 14 10 21 20 . 3 Critical Kills . | . . . . . . . Critical Parts Destroyed . | . . . . . . . Critical Strikes . | . . . . . . . Melee Attacks 29 | . . . . 12 . 17 Impact . | . . . . . . . Slashing 29 | . . . . 12 . 17 Piercing . | . . . . . . . Sneak Attacks 12 | . . . . 11 . 1 Combat Hostiles 1 | . . . . . . 1 Follow-up Attacks . | . . . . . . . Damage Inflicted 3321 | 196 319 234 819 1419 . 334 Guns 1523 | 195 319 58 306 645 . . Cannons . | . . . . . . . Explosions 685 | . . 172 513 . . . Melee 1100 | . . . . 766 . 334 Ramming 13 | 1 . 4 . 8 . . Kinetic 1523 | 195 319 58 306 645 . . Thermal . | . . . . . . . Explosive 685 | . . 172 513 . . . Electromagnetic . | . . . . . . . Impact . | . . . . . . . Slashing 1100 | . . . . 766 . 334 Piercing . | . . . . . . . Highest Corruption 1 | . . 1 . . . . Average Corruption 1 | . . 1 . . . . Corruption Purged . | . . . . . . . Corruption Blocked . | . . . . . . . Effects 1 | . . 1 . . . . Heat Flow Errors 1 | . . 1 . . . . Overload Shots . | . . . . . . . Overflow Damage 276 | . . . 74 180 . 22 Projectiles . | . . . . . . . Explosions 74 | . . . 74 . . . Melee 202 | . . . . 180 . 22 Knockbacks . | . . . . . . . Impact . | . . . . . . . Kinetic . | . . . . . . . Secondary . | . . . . . . . Self-Inflicted Damage 142 | . . 84 58 . . . Shots 6 | . . 4 2 . . . Rammed . | . . . . . . . Targets Rammed 3 | 1 . . . 2 . . Kicked 3 | 1 . . . 2 . . Crushed . | . . . . . . . Highest Temperature 185 | . . 185 15 6 . 26 Average Temperature 38 | . . 102 15 1 . 5 Received Heat Transfer 762 | . . . 63 168 . 531 Siege Activations . | . . . . . . . Robots Corrupted . | . . . . . . . Combat Hostiles . | . . . . . . . Parts Fried . | . . . . . . . Impact Corruptions . | . . . . . . . Robots Melted . | . . . . . . . Combat Hostiles . | . . . . . . . Parts Melted . | . . . . . . . Heat Transferred . | . . . . . . . Parts Sabotaged . | . . . . . . . Parts Stolen . | . . . . . . . Parts Stripped . | . . . . . . . Power Chain Reactions . | . . . . . . . Alert | -11 -10 -10 -9 -9 -9 -8 ------- Run | Yrd Mat Min Mat Min Exi Min Peak Influence 249 | 30 147 94 249 181 . 20 Initial 96 | . 19 57 36 96 . . Average 69 | 14 40 82 145 52 . 5 Maximum Alert Level 1 | . . . 1 . . . Low Security (%) 92 | 100 100 100 66 100 . 100 Level 1 7 | . . . 33 . . . Level 2 . | . . . . . . . Level 3 . | . . . . . . . Level 4 . | . . . . . . . Level 5 . | . . . . . . . High Security . | . . . . . . . Max Security . | . . . . . . . Squads Dispatched 2 | . . . 1 1 . . Investigation 1 | . . . . 1 . . Extermination . | . . . . . . . Reinforcement 1 | . . . 1 . . . Assault . | . . . . . . . Garrison . | . . . . . . . Intercept . | . . . . . . . Searches Triggered . | . . . . . . . Construction Impeded 1 | . . . 1 . . . Haulers Reinforced . | . . . . . . . Active Scanning Responses . | . . . . . . . Cargo Convoy Interrupts . | . . . . . . . Stealth | -11 -10 -10 -9 -9 -9 -8 --------- Run | Yrd Mat Min Mat Min Exi Min Distress Signals 3 | . 2 . 1 . . . Communications Jammed . | . . . . . . . Distress Signals . | . . . . . . . Times Spotted 30 | . 8 1 12 6 . 3 Peak Tracking Total 4 | . 4 1 3 3 . 3 Tactical Retreats 3 | . 2 . . 1 . . Traps | -11 -10 -10 -9 -9 -9 -8 ------- Run | Yrd Mat Min Mat Min Exi Min Traps Triggered . | . . . . . . . Indirectly . | . . . . . . . Trap Hack Attempts . | . . . . . . . Triggered . | . . . . . . . Disarmed . | . . . . . . . Reprogrammed . | . . . . . . . Reused . | . . . . . . . Traps Extracted . | . . . . . . . Installed . | . . . . . . . Triggered . | . . . . . . . Objects Rigged 1 | . . . 1 . . . Exploded 1 | . . . 1 . . . Machines | -11 -10 -10 -9 -9 -9 -8 ---------- Run | Yrd Mat Min Mat Min Exi Min Machines Disabled 2 | . . . 2 . . . Max in Single Turn 2 | . . . 2 . . . Machines Repaired . | . . . . . . . Machines Dismantled . | . . . . . . . Machines Sabotaged . | . . . . . . . Overloaded Fab Kills . | . . . . . . . Hacking | -11 -10 -10 -9 -9 -9 -8 --------- Run | Yrd Mat Min Mat Min Exi Min Machines Accessed 7 | . 1 . 4 1 1 . Terminals 6 | . 1 . 4 1 . . Fabricators . | . . . . . . . Repair Stations . | . . . . . . . Recycling Units . | . . . . . . . Scanalyzers . | . . . . . . . Garrison Access . | . . . . . . . Total Hacks 28 | . 6 . 11 4 7 . Successful 16 | . 4 . 5 . 7 . Failed 12 | . 2 . 6 4 . . Catastrophic 3 | . . . 2 1 . . Database Lockouts . | . . . . . . . Manual 14 | . 6 . 8 . . . Terminals 21 | . 6 . 11 4 . . Fabricators . | . . . . . . . Repair Stations . | . . . . . . . Recycling Units . | . . . . . . . Scanalyzers . | . . . . . . . Garrison Access . | . . . . . . . Terminal Hacks 8 | . 1 . . . 7 . Record 7 | . . . . . 7 . Terminal Index 1 | . 1 . . . . . Fabricator Hacks . | . . . . . . . Repair Station Hacks . | . . . . . . . Recycling Unit Hacks . | . . . . . . . Scanalyzer . | . . . . . . . Garrison Access Hacks . | . . . . . . . Unauthorized Hacks 8 | . 3 . 5 . . . Terminals 8 | . 3 . 5 . . . Track 1 | . . . 1 . . . Botnet 3 | . 1 . 2 . . . Detonate 1 | . . . 1 . . . Operators 2 | . 1 . 1 . . . Skim 1 | . 1 . . . . . Fabricators . | . . . . . . . Repair Stations . | . . . . . . . Recycling Units . | . . . . . . . Scanalyzers . | . . . . . . . Garrison Access . | . . . . . . . Data Cores Recovered . | . . . . . . . Used . | . . . . . . . Hacking Detections 6 | . 1 . 4 1 . . Full Trace Events 1 | . . . . 1 . . Feedback Events . | . . . . . . . Feedback Blocked . | . . . . . . . Robot Schematics Acquired . | . . . . . . . Robots Built . | . . . . . . . Authchips . | . . . . . . . Time . | . . . . . . . Total Robot Build Rating . | . . . . . . . Part Schematics Acquired . | . . . . . . . Parts Built . | . . . . . . . Authchips . | . . . . . . . Time . | . . . . . . . Total Part Build Rating . | . . . . . . . Parts Repaired . | . . . . . . . Time . | . . . . . . . Parts Recycled . | . . . . . . . Recycled Matter . | . . . . . . . Retrieved Matter . | . . . . . . . Retrieved Components . | . . . . . . . Parts Scanalyzed . | . . . . . . . Part Schematics Acquired . | . . . . . . . Parts Damaged . | . . . . . . . Bothacking | -11 -10 -10 -9 -9 -9 -8 ------------ Run | Yrd Mat Min Mat Min Exi Min Used RIF Installer . | . . . . . . . Robots Hacked . | . . . . . . . Non-combat . | . . . . . . . Combat . | . . . . . . . Robot Hacks Applied . | . . . . . . . Relay Couplers Released . | . . . . . . . Fabnet Peak Effective % . | . . . . . . . Robots Rewired . | . . . . . . . Allies Hacked . | . . . . . . . Hacks Repelled . | . . . . . . . Allies | -11 -10 -10 -9 -9 -9 -8 -------- Run | Yrd Mat Min Mat Min Exi Min Total Allies . | . . . . . . . Largest Group . | . . . . . . . Highest-Rated Group . | . . . . . . . Highest-Rated Ally . | . . . . . . . Total Orders . | . . . . . . . Ally Attacks . | . . . . . . . Total Damage . | . . . . . . . Kills . | . . . . . . . Allies Corrupted . | . . . . . . . Allies Melted . | . . . . . . . Intel | -11 -10 -10 -9 -9 -9 -8 ------- Run | Yrd Mat Min Mat Min Exi Min Robot Analysis Total . | . . . . . . . Derelict Logs Recovered 2 | . . . . 2 . . Drone Launches . | . . . . . . . Drone Recoveries . | . . . . . . . Exploration | -11 -10 -10 -9 -9 -9 -8 ------------- Run | Yrd Mat Min Mat Min Exi Min Turns Passed 3340 | 108 782 224 656 1271 240 59 Spaces Moved 1472 | 48 271 144 285 587 127 10 Core 4 | 4 . . . . . . Treads . | . . . . . . . Legs 1460 | 44 271 144 285 587 127 2 Wheels 8 | . . . . . . 8 Hover . | . . . . . . . Flight . | . . . . . . . Fastest Speed 50 | 50 120 120 120 190 190 105 Average Speed 167 | 114 120 120 188 190 190 128 Slowest Speed 330 | 120 120 120 190 330 190 190 Overloaded Moves . | . . . . . . . Propulsion Burnouts . | . . . . . . . Robots Hopped . | . . . . . . . Cave-ins Triggered . | . . . . . . . Exploration Rate (%) 38 | 4 38 41 31 95 49 8 Regions Visited 6 Branch Regions 4 Pre-discovered Areas 1 | . . . . . 1 . Known Exits Taken . | . . . . . . . Unknown Exits Taken 6 | 1 1 1 1 1 1 . Scrap Searched 1 | . . . . 1 . . Spaces Dug . | . . . . . . . Terrain Destroyed 51 | . . 27 24 . . . Melee . | . . . . . . . Projectile . | . . . . . . . AOE 51 | . . 27 24 . . . Terrain Rammed 1 | . . 1 . . . . Walls Destroyed . | . . . . . . . Machines Disabled . | . . . . . . . Actions | -11 -10 -10 -9 -9 -9 -8 --------- Run | Yrd Mat Min Mat Min Exi Min Total 2108 | 73 667 172 376 663 127 30 Wait 387 | . 354 3 23 7 . . Move 1467 | 48 270 143 284 586 126 10 Hop . | . . . . . . . Pick Up 25 | 3 5 1 13 3 . . Fast Attach 21 | 7 . . 4 9 . 1 Attach 9 | . . . 1 6 . 2 Detach 7 | . . . 2 5 . . Swap 16 | . . 3 12 1 . . Drop 22 | . . 2 16 3 1 . Fire 122 | 15 38 19 21 29 . . Melee 29 | . . . . 12 . 17 Ram 1 | . . 1 . . . . Kick 2 | . . . . 2 . . Crush . | . . . . . . . Escape Stasis . | . . . . . . . Rewire . | . . . . . . . Trap . | . . . . . . . Miscellaneous . | . . . . . . . Route ------- -11/Scrapyard -10/Materials (discovered 2 exits: *Mat / [*Min]) -10/Mines -9/Materials -9/Mines (discovered 4 exits: *Mat x2 / *Exi / [*Zio]) -9/Exiles (discovered 2 exits: [*Min x2]) -8/Mines History --------- Turn | Location | Event 6 | -11/Scrapyard | Discovered new exit (range 15) 109 | -11/Scrapyard | Entered Materials 300 | -10/Materials | Build established: Mutant 696 | -10/Materials | Discovered new exit (range 8) 754 | -10/Materials | Discovered new exit (range 11) 891 | -10/Materials | Entered Mines 914 | -10/Mines | Excavation squad dispatched 914 | -10/Mines | A large section of the Mines collapsed 1107 | -10/Mines | Discovered new exit (range 5) 1115 | -10/Mines | Entered Materials 1115 | -9/Materials | Evolved 2 slots: Propulsion x1, Utility x1 1577 | -9/Materials | Build established: Scavenger-Mutant 1747 | -9/Materials | Discovered new exit (range 7) 1771 | -9/Materials | Entered Mines 1857 | -9/Mines | Discovered new exit (range 6) 1893 | -9/Mines | Learned Materials terminal intel 2031 | -9/Mines | Lost 7 parts (3n2u2w) 2197 | -9/Mines | A Derelict revealed a hidden shortcut to a safe place 2392 | -9/Mines | Identified exit to Materials 2670 | -9/Mines | Received a Rocket Launcher from a helpful Derelict 3032 | -9/Mines | Deemed a non-threat by the Exiles lab entrance 3032 | -9/Mines | Discovered new exit (range 6) 3042 | -9/Mines | Entered Exiles 3068 | -9/Exiles | Discovered new exit (range 15) 3090 | -9/Exiles | Met 8R-AWN 3121 | -9/Exiles | Met EX-HEX 3195 | -9/Exiles | Met EX-DEC 3204 | -9/Exiles | Learned location of Zion (-7) 3267 | -9/Exiles | Discovered new exit (range 10) 3282 | -9/Exiles | Entered Mines 3284 | -8/Mines | Core integrity fell below 50% 3324 | -8/Mines | Core integrity fell below 20% 3341 | -8/Mines | Destroyed by G-50 Soldier with Heavy Laser Last Messages --------------- GOAL=ESCAPE 03282_ Sneak attack on G-47 Trooper. 03282_ Destroyed Lgt. Nuclear Core. 03286_ Critical hit (Burn: +37). 03294_ Assault Rifle destroyed. 03300_ Aluminum Leg destroyed. 03304_ K-01 Serf collects debris. 03306_ Aluminum Leg destroyed. 03310_ Critical hit (Burn: +37). 03313_ K-01 Serf collects debris. 03314_ G-47 Trooper destroyed. 03317_ K-01 Serf collects debris. 03318_ Acquired Aluminum Leg. 03320_ K-01 Serf cleans the Plasma Injector. 03320_ Aluminum Leg destroyed. 03322_ Rnf. Ion Engine destroyed. 03325_ K-01 Serf collects debris. 03325_ Structural Scanner destroyed. 03329_ K-01 Serf collects debris. 03331_ G-47 Trooper destroyed. Map ----- +----------------------------------------------------+ | ?????????????????????????????????????????????????? | | ?????????????????????????????????????????????????? | | ?????????????????????????????????????????????????? | | ?????????????????????????????????????????????????? | | ?????????????????????????????????????????????????? | | ?????????????????????????????????????????????????? | | ?????????????????????????????????????????????????? | | ?????????????????????????????????????????????????? | | ?????????????????????????????????????????????????? | | ?????????????????????????????????????????????????? | | ???????????????????????????? ????????????????????? | | ??????????????????????????## ##??????????????????? | | ??????????????????????????## ##??????????????????? | | ??????????????????????????# #??????????????????? | | ??????????????????????????? ###????????????????? | | ???????????????????????????? ####???????????????? | | ??????????????????????????? ###???????????????? | | ????????????????????????? """ ???????????????? | | ??????????????????????????""" ?????????????????? | | ??????????????????????????""" #?? ##???????????? | | ??????????????????????????? ##?? ###??????????? | | ???????????????????????????# #### ####?????????? | | ??????????????####?????????## #### ####????????? | | ?????????????? ## ?? ######## ### ##########?? | | ?????????? u ######## [ #########?? | | ?????????? g@ % ##?? | | ?????????????## ! $ # ?? | | ?????????????### #########%! ######? # ?? | | ??????????????# ? ########## #######?????? | | ??????????????????????????##### ###?????????? | | ???????????????????????????##### ##??????????? | | ?????????????????????????????### ###??????????? | | ??????????????????????????????### ####??????????? | | ??????????????????????????????########???????????? | | ????????????????????????????????#####????????????? | | ?????????????????????????????????????????????????? | | ?????????????????????????????????????????????????? | | ?????????????????????????????????????????????????? | | ?????????????????????????????????????????????????? | | ?????????????????????????????????????????????????? | | | | | | | | | | | | | | | | | | | | | +----------------------------------------------------+ Best States ------------- Heat Dissipation 38 Energy Generation 12 Energy Capacity 265 Matter Stores 300 Matter Capacity 300 Sight Range 16 Terrain Scan Density 10 Evasion (%) 55 Melee Accuracy 5 Target Analysis 5 Recoil Reduction 1 Item Schematics ----------------- None Robot Schematics ------------------ None Fabricated ------------ Nothing Alien Tech Used ----------------- None Achievements -------------- None Challenges ------------ None Game ------ Seed ShrapnelMissileLance Manual? 0 Play Time 00:21:53 Cumulative 141.1 hours Start 2025.03.21 @ 11:31:59 End 2025.03.21 @ 11:57:18 Sessions 1 Manual Loads 0 Difficulty Rogue Special Mode None Game No. 73 Rogue 69 Adventurer 2 Explorer 2 Win Type - Total 2 Types 1/0/1/0/0/0/0/0/0 Lore% 61 Gallery% 66 Achievement% 51 Wizard Run 0 Options --------- Layout 0 ASCII 0 Keyboard 1 Movement Arrows Keybinds 0 Fullscreen 2 Font 18/Terminus Map View 76x50 Zoom Use 0% Tactical HUD 1 Map Filters NONE Filters NONE Steam 1 RUN: 1520efaf-8120-4ee4-9c8c-0b9766124604